fUSD/lending_fUSD_20251225
["ID","MTS","AMOUNT","RATE_DAILY","PERIOD"]
[399703808,1766631042465,-46680.95383147,0.00013952,2]
[399703809,1766631042475,-500.0,0.00013993,2]
[399703810,1766631042485,-500.0,0.00013993,2]
[399703811,1766631042495,-488.88639166,0.00013993,2]
[399703812,1766631042505,-500.0,0.00013993,2]
[399703813,1766631042515,-500.0,0.00013993,2]
[399703814,1766631042524,-500.0,0.00013993,2]
[399703815,1766631042534,-500.0,0.00013993,2]
[399703816,1766631042544,-500.0,0.00013993,2]
[399703817,1766631042555,-255.0,0.00014005,2]
[399703818,1766631042564,-1568.34,0.00014005,2]
[399703819,1766631042574,-500.0,0.00014012,2]
[399703820,1766631042584,-195.0,0.00014029,2]
[399703821,1766631042594,-195.0,0.00014029,2]
[399703822,1766631042604,-207.4920134,0.00014029,2]
[399703823,1766631042614,-420.0,0.00014086,2]
[399703824,1766631042624,-195.0,0.00014096,2]
[399703825,1766631042634,-600.0,0.00014096,2]
[399703826,1766631042645,-600.0,0.00014096,2]
[399703827,1766631042661,-600.0,0.00014096,2]
[399703828,1766631042682,-600.0,0.00014096,2]
[399703829,1766631042696,-250.0,0.00014096,2]
[399703830,1766631042706,-300.0,0.00014096,2]
[399703831,1766631042715,-300.0,0.00014096,2]
[399703832,1766631042725,-300.0,0.00014096,2]
[399703833,1766631042734,-442.95974581,0.00014096,2]
[399703834,1766631042744,-2500.0,0.00014109,2]
[399703835,1766631042754,-2547.27554156,0.00014109,2]
[399703836,1766631042764,-195.0,0.00014109,2]
[399703837,1766631042774,-1680.0,0.00014127,2]
[399703838,1766631042784,-195.0,0.00014141,2]
[399703839,1766631042793,-300.0,0.00014141,2]
[399703840,1766631042803,-600.0,0.00014141,2]
[399703841,1766631042813,-250.0,0.00014141,2]
[399703842,1766631042822,-300.0,0.00014141,2]
[399703843,1766631042831,-1680.0,0.00014156,2]
[399703844,1766631042841,-420.0,0.00014157,2]
[399703845,1766631042851,-300.0,0.00014167,2]
[399703846,1766631042861,-307.07452106,0.00014167,2]
[399703847,1766631042870,-1443.1955126,0.00014184,2]
[399703848,1766631042880,-1568.34,0.00014279,2]
[399703849,1766631042890,-500.0,0.00014279,2]
[399703850,1766631042900,-200.0,0.00014279,2]
[399703851,1766631042910,-200.0,0.00014279,2]
[399703852,1766631042920,-500.0,0.00014286,2]
[399703853,1766631042929,-600.0,0.00014297,2]
[399703854,1766631042939,-498.19,0.00014297,2]
[399703855,1766631042948,-46680.95383147,0.00014373,2]
[399703856,1766631042958,-10000.0,0.0001451,2]
[399703857,1766631042968,-162.16,0.00014537,2]
[399703858,1766631042978,-1568.34,0.00014553,2]
[399703859,1766631042988,-525.59385387,0.0001456,2]
[399703860,1766631042998,-151.0,0.00014706,2]
[399703861,1766631043007,-1443.1955126,0.00014727,2]
[399703862,1766631043017,-46680.95383147,0.00014794,2]
[399703863,1766631043027,-1568.34,0.00014827,2]
[399703864,1766631043036,-500.0,0.00014827,2]
[399703865,1766631043046,-200.0,0.00014827,2]
[399703866,1766631043056,-200.0,0.00014827,2]
[399703868,1766631043068,-151.0,0.00014859,2]
[399703869,1766631043087,-151.0,0.00014881,2]
[399703870,1766631043097,-151.0,0.00014909,2]
[399703871,1766631043106,-151.0,0.00014919,2]
[399703872,1766631043116,-500.0,0.00014935,2]
[399703873,1766631043127,-500.0,0.00014935,2]
[399703874,1766631043136,-681.92,0.00014935,2]
[399703875,1766631043146,-523.76,0.00015028,2]
[399703876,1766631043155,-6414.76,0.00015043,2]
[399703877,1766631043165,-150.0,0.00015068,2]
[399703878,1766631043174,-890.89,0.00015068,2]
[399703879,1766631043184,-600.0,0.00015076,2]
[399703880,1766631043193,-498.19,0.00015076,2]
[399703881,1766631043203,-155.31344132,0.00015095,2]
[399703882,1766631043216,-1568.34,0.00015101,2]
[399703883,1766631043226,-651.49053932,0.00015103,2]
[399703884,1766631043235,-177.74,0.00015173,2]
[399703885,1766631043245,-433.0,0.00015193,2]
[399703886,1766631043256,-169.92268481,0.00015206,2]
[399703887,1766631043266,-500.0,0.00015206,2]
[399703888,1766631043275,-500.0,0.00015206,2]
[399703889,1766631043286,-283.61332376,0.00015206,2]
[399703890,1766631043298,-500.0,0.00015206,2]
[399703891,1766631043307,-500.0,0.00015206,2]
[399703892,1766631043317,-500.0,0.00015206,2]
[399703893,1766631043327,-46680.95383147,0.00015216,2]
[399703894,1766631043337,-1443.1955126,0.00015271,2]
[399703895,1766631043347,-183.15363215,0.00015288,2]
[399703896,1766631043357,-150.0,0.00015288,2]
[399703897,1766631043366,-150.0,0.00015288,2]
[399703898,1766631043376,-150.0,0.00015288,2]
[399703899,1766631043386,-150.68391937,0.00015288,2]
[399703900,1766631043396,-150.0,0.00015288,2]
[399703901,1766631043406,-150.0,0.00015288,2]
[399703902,1766631043416,-150.0,0.00015288,2]
[399703903,1766631043426,-150.0,0.00015288,2]
[399703904,1766631043435,-150.0,0.00015288,2]
[399703905,1766631043445,-150.67050673,0.00015288,2]
[399703906,1766631043455,-150.0,0.00015288,2]
[399703907,1766631043465,-150.0,0.00015288,2]
[399703908,1766631043474,-150.0,0.00015288,2]
[399703909,1766631043484,-150.0,0.00015316,2]
[399703910,1766631043494,-150.0,0.00015329,2]
[399703911,1766631043504,-150.0,0.00015341,2]
[399703912,1766631043514,-150.0,0.00015345,2]
[399703913,1766631043524,-150.0,0.00015346,2]
[399703914,1766631043534,-150.0,0.00015358,2]
[399703915,1766631043543,-150.0,0.00015362,2]
[399703916,1766631043553,-150.0,0.00015371,2]
[399703917,1766631043562,-150.0,0.00015373,2]
[399703918,1766631043571,-150.0,0.00015374,2]
[399703919,1766631043580,-1568.34,0.00015375,2]
[399703920,1766631043590,-500.0,0.00015375,2]
[399703921,1766631043599,-200.0,0.00015375,2]
[399703922,1766631043609,-200.0,0.00015375,2]
[399703923,1766631043619,-150.0,0.00015394,2]
[399703924,1766631043628,-150.0,0.00015403,2]
[399703925,1766631043637,-150.0,0.00015405,2]
[399703926,1766631043647,-150.0,0.00015412,2]
[399703927,1766631043657,-500.0,0.00015422,2]
[399703928,1766631043667,-150.0,0.00015429,2]
[399703929,1766631043676,-150.0,0.00015432,2]
[399703930,1766631043686,-150.0,0.00015435,2]
[399703931,1766631043696,-150.0,0.00015447,2]
[399703932,1766631043706,-587.0,0.0001545,2]
[399703933,1766631043716,-150.0,0.00015453,2]
[399703934,1766631043726,-150.0,0.00015458,2]
[399703935,1766631043736,-150.0,0.0001546,2]
[399703936,1766631043745,-150.0,0.00015463,2]
[399703937,1766631043755,-150.0,0.00015489,2]
[399703938,1766631043764,-150.0,0.00015495,2]
[399703939,1766631043773,-150.0,0.000155,2]
[399703940,1766631043783,-150.0,0.000155,2]
[399703941,1766631043793,-150.0,0.000155,2]
[399703942,1766631043803,-150.0,0.00015509,2]
[399703943,1766631043813,-150.0,0.00015518,2]
[399703944,1766631043823,-150.0,0.00015522,2]
[399703945,1766631043833,-2351.0,0.00015526,2]
[399703946,1766631043843,-587.0,0.00015527,2]
[399703947,1766631043853,-150.0,0.0001553,2]
[399703948,1766631043863,-150.0,0.00015536,2]
[399703949,1766631043873,-2351.0,0.00015539,2]
[399703950,1766631043883,-150.0,0.00015542,2]
[399703951,1766631043892,-150.0,0.00015547,2]
[399703952,1766631043901,-150.0,0.00015553,2]
[399703953,1766631043911,-150.0,0.00015571,2]
[399703954,1766631043921,-150.0,0.00015576,2]
[399703955,1766631043930,-150.0,0.00015578,2]
[399703956,1766631043940,-150.0,0.00015581,2]
[399703957,1766631043950,-150.0,0.00015583,2]
[399703958,1766631043960,-150.0,0.00015604,2]
[399703959,1766631043971,-150.0,0.00015606,2]
[399703960,1766631043981,-150.0,0.00015619,2]
[399703961,1766631043993,-150.0,0.00015627,2]
[399703962,1766631044003,-150.0,0.00015633,2]
[399703963,1766631044013,-46680.95383147,0.00015637,2]
[399703964,1766631044023,-150.0,0.00015639,2]
[399703965,1766631044033,-150.0,0.00015642,2]
[399703966,1766631044043,-1568.34,0.00015649,2]
[399703967,1766631044052,-150.0,0.00015657,2]
[399703968,1766631044062,-150.0,0.00015659,2]
[399703969,1766631044071,-150.0,0.00015661,2]
[399703970,1766631044081,-150.0,0.00015662,2]
[399703971,1766631044091,-150.0,0.00015691,2]
[399703972,1766631044101,-150.0,0.00015698,2]
[399703973,1766631044111,-150.0,0.00015702,2]
[399703974,1766631044121,-150.0,0.00015712,2]
[399703975,1766631044131,-150.0,0.00015712,2]
[399703976,1766631044141,-150.0,0.00015712,2]
[399703977,1766631044150,-150.0,0.00015712,2]
[399703978,1766631044161,-150.0,0.00015712,2]
[399703979,1766631044171,-150.0,0.0001572,2]
[399703980,1766631044181,-150.0,0.00015731,2]
[399703981,1766631044191,-150.0,0.00015743,2]
[399703982,1766631044200,-150.0,0.00015748,2]
[399703983,1766631044210,-177.72702326,0.00015753,2]
[399703984,1766631044224,-150.0,0.00015756,2]
[399703985,1766631044235,-150.0,0.00015765,2]
[399703986,1766631044245,-150.0,0.00015773,2]
[399703987,1766631044255,-150.0,0.00015777,2]
[399703988,1766631044266,-150.0,0.00015783,2]
[399703989,1766631044276,-150.0,0.00015785,2]
[399703990,1766631044288,-150.0,0.00015797,2]
[399703991,1766631044299,-150.0,0.00015805,2]
[399703992,1766631044309,-150.0,0.00015806,2]
[399703993,1766631044318,-1443.1955126,0.00015814,2]
[399703994,1766631044328,-150.0,0.00015815,2]
[399703995,1766631044340,-150.0,0.00015818,2]
[399703996,1766631044350,-150.0,0.00015826,2]
[399703997,1766631044360,-150.0,0.00015835,2]
[399703998,1766631044370,-150.0,0.00015854,2]
[399703999,1766631044381,-150.0,0.00015863,2]
[399704000,1766631044392,-150.0,0.00015868,2]
[399704001,1766631044404,-150.0,0.00015872,2]
[399704002,1766631044414,-150.0,0.00015873,2]
[399704003,1766631044424,-150.0,0.00015878,2]
[399704004,1766631044434,-150.0,0.00015882,2]
[399704005,1766631044444,-150.0,0.00015892,2]
[399704006,1766631044453,-488.08,0.00015894,2]
[399704007,1766631044465,-150.0,0.00015909,2]
[399704008,1766631044474,-150.0,0.00015921,2]
[399704009,1766631044484,-215.0738,0.00015922,2]
[399704010,1766631044494,-1568.34,0.00015923,2]
[399704011,1766631044504,-500.0,0.00015923,2]
[399704012,1766631044514,-200.0,0.00015923,2]
[399704013,1766631044525,-200.0,0.00015923,2]
[399704014,1766631044534,-150.0,0.00015925,2]
[399704015,1766631044544,-150.0,0.00015925,2]
[399704016,1766631044555,-150.0,0.00015925,2]
[399704017,1766631044571,-150.0,0.00015932,2]
[399704018,1766631044592,-488.08,0.00015935,2]
[399704019,1766631044836,-150.0,0.0001595,2]
[399704020,1766631044847,-150.0,0.00015951,2]
[399704021,1766631044857,-150.0,0.00015952,2]
[399704022,1766631044867,-150.0,0.00015967,2]
[399704023,1766631044876,-488.08,0.00015975,2]
[399704024,1766631044886,-150.0,0.00015978,2]
[399704025,1766631044897,-150.0,0.00015979,2]
[399704026,1766631044907,-150.0,0.00015991,2]
[399704027,1766631044917,-150.0,0.00015992,2]
[399704028,1766631044926,-150.0,0.00015995,2]
[399704029,1766631044936,-150.0,0.00016007,2]
[399704030,1766631044945,-150.0,0.00016016,2]
[399704031,1766631044955,-150.0,0.00016026,2]
[399704032,1766631044965,-150.0,0.00016031,2]
[399704033,1766631044975,-150.0,0.00016033,2]
[399704034,1766631044989,-150.0,0.00016036,2]
[399704035,1766631044999,-150.0,0.00016049,2]
[399704036,1766631045009,-151.0,0.0001605,2]
[399704037,1766631045019,-150.0,0.00016052,2]
[399704038,1766631045029,-46680.95383147,0.00016058,2]
[399704039,1766631045039,-150.0,0.00016065,2]
[399704040,1766631045048,-150.0,0.00016066,2]
[399704041,1766631045059,-1600.0,0.00016068,2]
[399704042,1766631045069,-150.0,0.00016075,2]
[399704043,1766631045079,-150.0,0.00016084,2]
[399704044,1766631045090,-150.0,0.00016094,2]
[399704045,1766631045100,-150.0,0.000161,2]
[399704046,1766631045110,-150.0,0.00016108,2]
[399704047,1766631045120,-500.0,0.00016113,2]
[399704048,1766631045130,-519.34175098,0.00016113,2]
[399704049,1766631045139,-681.92,0.00016113,2]
[399704050,1766631045149,-150.0,0.00016116,2]
[399704051,1766631045159,-150.0,0.00016123,2]
[399704052,1766631045169,-150.0,0.00016137,2]
[399704053,1766631045179,-150.0,0.00016137,2]
[399704054,1766631045189,-150.0,0.00016137,2]
[399704055,1766631045198,-150.0,0.00016137,2]
[399704056,1766631045209,-150.0,0.00016137,2]
[399704057,1766631045223,-150.0,0.00016137,2]
[399704058,1766631045233,-150.0,0.00016151,2]
[399704059,1766631045243,-150.0,0.00016158,2]
[399704060,1766631045252,-150.0,0.00016166,2]
[399704061,1766631045263,-150.0,0.00016174,2]
[399704062,1766631045274,-150.0,0.0001618,2]
[399704063,1766631045283,-150.0,0.0001619,2]
[399704064,1766631045294,-1568.34,0.00016197,2]
[399704065,1766631045304,-150.0,0.00016199,2]
[399704066,1766631045314,-150.0,0.00016208,2]
[399704067,1766631045324,-150.0,0.00016209,2]
[399704068,1766631045334,-150.0,0.00016222,2]
[399704069,1766631045343,-150.0,0.00016225,2]
[399704070,1766631045354,-150.0,0.00016238,2]
[399704071,1766631045364,-150.0,0.00016241,2]
[399704072,1766631045374,-150.0,0.00016243,2]
[399704073,1766631045384,-150.0,0.00016248,2]
[399704074,1766631045394,-150.0,0.00016258,2]
[399704075,1766631045404,-150.0,0.00016267,2]
[399704076,1766631045414,-150.0,0.00016279,2]
[399704077,1766631045424,-150.0,0.00016282,2]
[399704078,1766631045434,-150.0,0.00016283,2]
[399704079,1766631045444,-150.0,0.00016295,2]
[399704080,1766631045454,-150.0,0.00016296,2]
[399704081,1766631045465,-150.0,0.00016307,2]
[399704082,1766631045475,-150.0,0.00016322,2]
[399704083,1766631045485,-150.0,0.00016323,2]
[399704084,1766631045495,-150.0,0.00016324,2]
[399704085,1766631045505,-200.17243952,0.00016337,2]
[399704086,1766631045515,-150.0,0.00016342,2]
[399704087,1766631045525,-150.0,0.00016349,2]
[399704088,1766631045535,-150.0,0.00016349,2]
[399704089,1766631045545,-150.0,0.00016349,2]
[399704090,1766631045554,-150.0,0.00016353,2]
[399704091,1766631045564,-1443.1955126,0.00016357,2]
[399704092,1766631045574,-523.76,0.00016358,2]
[399704093,1766631045584,-150.0,0.00016365,2]
[399704094,1766631045594,-150.0,0.00016382,2]
[399704095,1766631045604,-150.0,0.00016392,2]
[399704096,1766631045614,-150.0,0.00016395,2]
[399704097,1766631045623,-228.0,0.000164,2]
[399704098,1766631045633,-319.0,0.000164,2]
[399704099,1766631045643,-182.0,0.000164,2]
[399704100,1766631045654,-184.24951816,0.000164,2]
[399704101,1766631045664,-150.0,0.00016401,2]
[399704102,1766631045673,-150.0,0.00016402,2]
[399704103,1766631045683,-150.0,0.00016406,2]
[399704104,1766631045693,-150.0,0.0001641,2]
[399704105,1766631045703,-150.0,0.0001642,2]
[399704106,1766631045713,-150.0,0.0001643,2]
[399704107,1766631045723,-500.0,0.00016437,2]
[399704108,1766631045733,-500.0,0.00016437,2]
[399704109,1766631045743,-500.0,0.00016437,2]
[399704110,1766631045752,-500.0,0.00016437,2]
[399704111,1766631045763,-500.0,0.00016437,2]
[399704112,1766631045773,-500.0,0.00016437,2]
[399704113,1766631045783,-504.44244817,0.00016437,2]
[399704114,1766631045794,-500.0,0.00016437,2]
[399704115,1766631045804,-500.0,0.00016437,2]
[399704116,1766631045814,-500.0,0.00016437,2]
[399704118,1766631045824,-559.97789648,0.00016437,2]
[399704120,1766631045834,-500.0,0.00016437,2]
[399704121,1766631045843,-500.0,0.00016437,2]
[399704122,1766631045853,-500.0,0.00016437,2]
[399704123,1766631045864,-152.75059156,0.00016438,2]
[399704124,1766631045874,-511.52286266,0.00016438,2]
[399704125,1766631045884,-511.52286266,0.00016438,2]
[399704126,1766631045894,-511.52286266,0.00016438,2]
[399704127,1766631045904,-511.52286266,0.00016438,2]
[399704128,1766631045914,-511.52286266,0.00016438,2]
[399704129,1766631045924,-511.52286266,0.00016438,2]
[399704130,1766631045934,-511.52286266,0.00016438,2]
[399704131,1766631045944,-511.52286266,0.00016438,2]
[399704132,1766631045954,-511.52286266,0.00016438,2]
[399704133,1766631045964,-511.52286266,0.00016438,2]
[399704134,1766631045973,-511.52286266,0.00016438,2]
[399704135,1766631045983,-511.52286266,0.00016438,2]
[399704136,1766631045993,-511.52286266,0.00016438,2]
[399704137,1766631046003,-511.52286266,0.00016438,2]
[399704138,1766631046013,-511.52286266,0.00016438,2]
[399704139,1766631046023,-511.52286266,0.00016438,2]
[399704140,1766631046033,-511.52286266,0.00016438,2]
[399704141,1766631046043,-511.52286266,0.00016438,2]
[399704142,1766631046052,-511.52286266,0.00016438,2]
[399704143,1766631046062,-511.52286266,0.00016438,2]
[399704144,1766631046072,-511.52286266,0.00016438,2]
[399704145,1766631046083,-511.52286266,0.00016438,2]
[399704146,1766631046092,-511.52286266,0.00016438,2]
[399704147,1766631046102,-511.52286266,0.00016438,2]
[399704148,1766631046112,-511.52286266,0.00016438,2]
[399704149,1766631046122,-511.52286266,0.00016438,2]
[399704150,1766631046132,-511.52286266,0.00016438,2]
[399704151,1766631046142,-511.52286266,0.00016438,2]
[399704152,1766631046152,-511.52286266,0.00016438,2]
[399704153,1766631046162,-511.52286266,0.00016438,2]
[399704154,1766631046172,-511.52286266,0.00016438,2]
[399704155,1766631046181,-511.52286266,0.00016438,2]
[399704156,1766631046191,-511.52286266,0.00016438,2]
[399704157,1766631046200,-511.52286266,0.00016438,2]
[399704158,1766631046211,-511.52286266,0.00016438,2]
[399704159,1766631046231,-511.52286266,0.00016438,2]
[399704160,1766631046252,-511.52286266,0.00016438,2]
[399704161,1766631046263,-511.52286266,0.00016438,2]
[399704162,1766631046273,-511.52286266,0.00016438,2]
[399704163,1766631046283,-511.52286266,0.00016438,2]
[399704164,1766631046293,-511.52286266,0.00016438,2]
[399704165,1766631046304,-511.52286266,0.00016438,2]
[399704166,1766631046314,-511.52286266,0.00016438,2]
[399704167,1766631046325,-511.52286266,0.00016438,2]
[399704168,1766631046335,-511.52286266,0.00016438,2]
[399704169,1766631046345,-511.52286266,0.00016438,2]
[399704170,1766631046355,-511.52286266,0.00016438,2]
[399704171,1766631046365,-511.52286266,0.00016438,2]
[399704172,1766631046374,-511.52286266,0.00016438,2]
[399704173,1766631046385,-511.52286266,0.00016438,2]
[399704174,1766631046394,-511.52286266,0.00016438,2]
[399704175,1766631046404,-511.52286266,0.00016438,2]
[399704176,1766631046415,-511.52286266,0.00016438,2]
[399704177,1766631046425,-511.52286266,0.00016438,2]
[399704178,1766631046435,-511.52286266,0.00016438,2]
[399704179,1766631046445,-511.52286266,0.00016438,2]
[399704180,1766631046455,-2997.74379748,0.00016438,2]
[399704181,1766631046465,-2997.74379748,0.00016438,2]
[399704182,1766631046475,-2997.74379748,0.00016438,2]
[399704183,1766631046485,-2997.74379748,0.00016438,2]
[399704184,1766631046495,-2997.74379748,0.00016438,2]
[399704185,1766631046505,-2997.74379748,0.00016438,2]
[399704186,1766631046515,-2997.74379748,0.00016438,2]
[399704187,1766631046525,-2997.74379748,0.00016438,2]
[399704188,1766631046535,-2997.74379748,0.00016438,2]
[399704189,1766631046545,-2997.74379748,0.00016438,2]
[399704190,1766631046555,-2997.74379748,0.00016438,2]
[399704191,1766631046565,-2997.74379748,0.00016438,2]
[399704192,1766631046575,-2997.74379748,0.00016438,2]
[399704193,1766631046585,-2997.74379748,0.00016438,2]
[399704194,1766631046595,-2997.74379748,0.00016438,2]
[399704195,1766631046605,-2997.74379748,0.00016438,2]
[399704196,1766631046615,-2997.74379748,0.00016438,2]
[399704197,1766631046624,-2997.74379748,0.00016438,2]
[399704198,1766631046634,-2997.74379748,0.00016438,2]
[399704199,1766631046643,-2997.74379748,0.00016438,2]
[399704200,1766631046652,-2997.74379748,0.00016438,2]
[399704201,1766631046662,-2997.74379748,0.00016438,2]
[399704202,1766631046672,-2997.74379748,0.00016438,2]
[399704203,1766631046682,-2997.74379748,0.00016438,2]
[399704204,1766631046692,-2997.74379748,0.00016438,2]
[399704205,1766631046702,-2997.74379748,0.00016438,2]
[399704206,1766631046712,-2997.74379748,0.00016438,2]
[399704207,1766631046722,-2997.74379748,0.00016438,2]
[399704208,1766631046732,-2997.74379748,0.00016438,2]
[399704209,1766631046742,-2997.74379748,0.00016438,2]
[399704210,1766631046751,-2997.74379748,0.00016438,2]
[399704211,1766631046761,-2997.74379748,0.00016438,2]
[399704212,1766631046771,-2997.74379748,0.00016438,2]
[399704213,1766631046781,-2997.7437975,0.00016438,2]
[399704214,1766631046791,-500.0,0.00016438,2]
[399704215,1766631046801,-626.05,0.00016438,2]
[399704216,1766631046811,-890.89,0.00016438,2]
[399704217,1766631046821,-800.0,0.00016438,2]
[399704218,1766631046830,-226.01,0.00016438,2]
[399704219,1766631046840,-150.0,0.00016439,2]
[399704220,1766631046850,-150.0,0.00016448,2]
[399704221,1766631046860,-150.0,0.00016455,2]
[399704222,1766631046871,-150.0,0.00016459,2]
[399704223,1766631046881,-500.0,0.00016465,2]
[399704224,1766631046890,-150.0,0.00016468,2]
[399704225,1766631046900,-150.0,0.00016469,2]
[399704226,1766631046911,-1568.34,0.00016471,2]
[399704227,1766631046920,-500.0,0.00016471,2]
[399704228,1766631046930,-200.0,0.00016471,2]
[399704229,1766631046941,-200.0,0.00016471,2]
[399704230,1766631046951,-150.0,0.00016477,2]
[399704231,1766631046961,-46680.95383147,0.00016479,2]
[399704232,1766631046971,-736.0,0.00016484,2]
[399704233,1766631046980,-150.0,0.00016489,2]
[399704234,1766631046990,-150.0,0.00016491,2]
[399704235,1766631047001,-500.0,0.00016493,2]
[399704236,1766631047011,-150.0,0.00016497,2]
[399704237,1766631047021,-150.0,0.00016501,2]
[399704238,1766631047031,-150.0,0.00016509,2]
[399704239,1766631047040,-150.0,0.00016518,2]
[399704240,1766631047051,-500.0,0.0001652,2]
[399704241,1766631047060,-150.0,0.00016526,2]
[399704242,1766631047071,-150.0,0.00016531,2]
[399704243,1766631047080,-150.0,0.00016543,2]
[399704244,1766631047090,-500.0,0.00016548,2]
[399704245,1766631047100,-150.0,0.00016554,2]
[399704246,1766631047111,-150.0,0.00016562,2]
[399704247,1766631047122,-150.0,0.00016562,2]
[399704248,1766631047131,-150.0,0.00016562,2]
[399704249,1766631047141,-150.0,0.00016562,2]
[399704250,1766631047150,-150.0,0.00016562,2]
[399704251,1766631047161,-150.0,0.00016572,2]
[399704252,1766631047171,-500.0,0.00016575,2]
[399704253,1766631047181,-150.0,0.00016576,2]
[399704254,1766631047191,-150.0,0.00016583,2]
[399704255,1766631047201,-500.0,0.00016602,2]
[399704256,1766631047211,-150.0,0.00016612,2]
[399704257,1766631047224,-150.0,0.00016613,2]
[399704258,1766631047234,-150.0,0.00016615,2]
[399704259,1766631047244,-150.0,0.00016617,2]
[399704260,1766631047254,-200.17243952,0.00016619,2]
[399704261,1766631047267,-177.74,0.00016621,2]
[399704262,1766631047277,-500.0,0.0001663,2]
[399704263,1766631047290,-150.0,0.00016632,2]
[399704264,1766631047300,-150.0,0.00016635,2]
[399704265,1766631047309,-150.0,0.00016641,2]
[399704266,1766631047319,-150.0,0.00016647,2]
[399704267,1766631047329,-10000.0,0.00016654,2]
[399704268,1766631047343,-150.0,0.00016655,2]
[399704269,1766631047354,-500.0,0.00016657,2]
[399704270,1766631047364,-150.0,0.00016668,2]
[399704271,1766631047375,-150.0,0.0001667,2]
[399704272,1766631047385,-511.04343798,0.00016685,2]
[399704273,1766631047395,-150.0,0.00016691,2]
[399704274,1766631047405,-150.0,0.00016693,2]
[399704275,1766631047415,-150.0,0.00016696,2]
[399704276,1766631047425,-150.0,0.00016698,2]
[399704277,1766631047435,-150.0,0.00016703,2]
[399704278,1766631047445,-150.0,0.00016721,2]
[399704279,1766631047456,-150.0,0.00016727,2]
[399704280,1766631047466,-150.0,0.00016732,2]
[399704281,1766631047475,-150.0,0.00016738,2]
[399704282,1766631047485,-150.0,0.00016744,2]
[399704283,1766631047495,-1568.34,0.00016745,2]
[399704284,1766631047504,-150.0,0.00016752,2]
[399704285,1766631047517,-150.0,0.00016756,2]
[399704286,1766631047532,-150.0,0.00016765,2]
[399704287,1766631047548,-150.0,0.00016774,2]
[399704288,1766631047562,-150.0,0.00016774,2]
[399704289,1766631047574,-150.0,0.00016774,2]
[399704290,1766631047587,-150.0,0.00016779,2]
[399704291,1766631047600,-150.0,0.00016785,2]
[399704292,1766631047615,-500.0,0.00016808,2]
[399704293,1766631047628,-681.92,0.00016808,2]
[399704294,1766631047642,-150.0,0.00016811,2]
[399704295,1766631047656,-150.0,0.00016814,2]
[399704296,1766631047671,-150.0,0.00016816,2]
[399704297,1766631047683,-150.0,0.00016821,2]
[399704298,1766631047696,-150.0,0.00016827,2]
[399704299,1766631047708,-150.0,0.00016839,2]
[399704300,1766631047719,-150.0,0.00016842,2]
[399704301,1766631047732,-150.0,0.00016845,2]
[399704302,1766631047745,-201.12732165,0.00016845,2]
[399704303,1766631047759,-150.0,0.00016862,2]
[399704304,1766631047773,-150.0,0.00016869,2]
[399704305,1766631047788,-150.0,0.00016871,2]
[399704306,1766631047803,-150.0,0.0001688,2]
[399704307,1766631047817,-3430.64475743,0.00016897,2]
[399704308,1766631047831,-3430.6447574,0.00016898,2]
[399704309,1766631047844,-3430.6447574,0.00016898,2]
[399704310,1766631047858,-3430.6447574,0.00016899,2]